{"text_format":"1","workbook":"xlsx","n_sheets":30,"sheets":["Student Information","Attendance","PrePost"," Dates of Stages","CP","AP","MP","Worksheets","Adaptation","Example ","Student 1","Student 2","Student 3","Student 4","Student 5","Student 6","Student 7","Student 8","Student 9","Student 10","Student 11","Student 12","Student 13","Student 14","Student 15","Student 16","Student 17","Student 18","Student 19","Student 20"],"not_rendered":{"charts":84,"images":3,"macros":1,"external_links":1,"defined_names":0,"comments":0,"pivot_tables":0},"unopened":[],"bounds":{"document_bytes":16777216,"sheet_cells":100000,"rows_first":2000,"rows_last":500,"rows_between":2000,"halvings":0,"cell_chars":16384,"cell_head_chars":4096},"cells_cut":0,"cells_raw":0,"read":"whole","date_system":"1900"}

{"sheet":"Student Information","index":0,"n_rows":33,"n_cols":20,"rows_kept":33,"cut":false,"hidden":false,"merged":[[22,12,23,19],[22,10,23,11],[30,2,30,3],[31,2,31,3],[32,2,32,3],[30,4,33,10]]}
[null,"Student Name","Grade Level","IEP?","Gender","ELL?","ELL WIDA ACCESS LEVEL","RACE ETHNICITY","LITERACY MEASURE","OTHER INTERVENTIONS","LEXILE LEVEL","LEXILE LEVEL DATE","Date of Reading Measure 2","Reading Measure 2","Date of Reading Measure 3","Reading Measure 3","Date of Reading Measure 4","Reading Measure 4","Date of Reading Measure 4","Reading Measure 4"]
[null,"Jennifer Example",null,"No","Female","Yes","",null,null,"",null,""]
[1]
[2]
[3]
[4]
[5]
[6]
[7]
[8]
[9]
[10]
[11]
[12]
[13]
[14]
[15]
[16]
[17]
[18]
[19]
[20]
[null,null,null,null,null,null,"",null,null,"",null,null,"      Enter Reading Measure 2-5 directly on this worksheet.  The \"CLEAR\" Button empties all cells."]
[]
[null,null,null,null,"IEPs",{"$f":"COUNTIF(D3:D22,\"Yes\")","v":0},null,"American Indian or Alaskan Native",{"$f":"COUNTIF(H3:H22,H25)","v":0}]
[null,null,null,null,"ELL",{"$f":"COUNTIF(F3:F22,\"Yes\")","v":0},null,"Asian or Pacific Islander",{"$f":"COUNTIF(H3:H22,H26)","v":0}]
[null,null,null,null,"Male",{"$f":"COUNTIF(E3:E22,\"Male\")","v":0},null,"Black, not of Hispanic Origin",{"$f":"COUNTIF(H3:H22,H27)","v":0}]
[null,null,null,null,"Female",{"$f":"COUNTIF(E3:E22,\"Female\")","v":0},null,"Hispanic",{"$f":"COUNTIF(H3:H22,H28)","v":0}]
[null,null,null,null,null,null,null,"White, not of Hispanic Origin",{"$f":"COUNTIF(H3:H22,H29)","v":0}]
[null,null,null,null,null,null,null,"Other",{"$f":"COUNTIF(H3:H22,H30)","v":0}]
[null,"Teacher",null,null,"The Word Identification Strategy"]
[null,"SCHOOL"]
[null,"CLASS PERIOD:",6]

{"sheet":"Attendance","index":1,"n_rows":26,"n_cols":3,"rows_kept":26,"cut":false,"hidden":false,"merged":[[1,0,1,7],[2,0,3,0],[2,2,2,14]]}
[]
["The Word Identification Strategy:  Attendance"]
[null,"DO NOT TYPE IN THIS COLUMN","Instructions:  Fill in each date of instruction.  Type an \"X\" in that column for each student instructed that day.  Total \"X\"'s are tabulated in COLUMN B.  "]
[null,"Dates of Instruction:","2015-09-01"]
["Student Name","TOTAL DAYS"]
[{"$f":"'[1]Student Information'!B2","v":"Jennifer Example"},{"$f":"COUNTA(C6:FC6)","v":1},"X"]
[{"$f":"'Student Information'!B3","v":0},0]
[{"$f":"'Student Information'!B4","v":0},0]
[{"$f":"'Student Information'!B5","v":0},0]
[{"$f":"'Student Information'!B6","v":0},0]
[{"$f":"'Student Information'!B7","v":0},0]
[{"$f":"'Student Information'!B8","v":0},0]
[{"$f":"'Student Information'!B9","v":0},0]
[{"$f":"'Student Information'!B10","v":0},0]
[{"$f":"'Student Information'!B11","v":0},0]
[{"$f":"'Student Information'!B12","v":0},0]
[{"$f":"'Student Information'!B13","v":0},0]
[{"$f":"'Student Information'!B14","v":0},0]
[{"$f":"'Student Information'!B15","v":0},0]
[{"$f":"'Student Information'!B16","v":0},0]
[{"$f":"'Student Information'!B17","v":0},0]
[{"$f":"'Student Information'!B18","v":0},0]
[{"$f":"'Student Information'!B19","v":0},0]
[{"$f":"'Student Information'!B20","v":0},0]
[{"$f":"'Student Information'!B21","v":0},0]
[{"$f":"'Student Information'!B22","v":0},0]

{"sheet":"PrePost","index":2,"n_rows":29,"n_cols":10,"rows_kept":29,"cut":false,"hidden":false,"merged":[[26,2,26,3],[27,2,27,3],[28,2,28,3],[0,1,0,9]]}
[null,"The Word Identifcation Strategy:  Pre and Post Tests"]
[null,"Student Name","Pre Test Date","Oral Reading","Comprehension","Prefix/Suffix Test score","Post Test Date","Oral Reading","Comprehension","Days from Pretest 1 to Final Post Test"]
[null,{"$f":"'Student Information'!B2","v":"Jennifer Example"},"2013-03-09",20,35,56,"2013-04-20",85,90,{"$f":"G3-C3","v":42}]
[1,{"$f":"'Student Information'!B3","v":0},null,null,null,null,null,null,null,{"$f":"G4-C4","v":0}]
[2,{"$f":"'Student Information'!B4","v":0},null,null,null,null,null,null,null,{"$f":"G5-C5","v":0}]
[3,{"$f":"'Student Information'!B5","v":0},null,null,null,null,null,null,null,0]
[4,{"$f":"'Student Information'!B6","v":0},null,null,null,null,null,null,null,0]
[5,{"$f":"'Student Information'!B7","v":0},null,null,null,null,null,null,null,{"$f":"G8-C8","v":0}]
[6,{"$f":"'Student Information'!B8","v":0},null,null,null,null,null,null,null,0]
[7,{"$f":"'Student Information'!B9","v":0},null,null,null,null,null,null,null,0]
[8,{"$f":"'Student Information'!B10","v":0},null,null,null,null,null,null,null,0]
[9,{"$f":"'Student Information'!B11","v":0},null,null,null,null,null,null,null,0]
[10,{"$f":"'Student Information'!B12","v":0},null,null,null,null,null,null,null,0]
[11,{"$f":"'Student Information'!B13","v":0},null,null,null,null,null,null,null,0]
[12,{"$f":"'Student Information'!B14","v":0},null,null,null,null,null,null,null,0]
[13,{"$f":"'Student Information'!B15","v":0},null,null,null,null,null,null,null,0]
[14,{"$f":"'Student Information'!B16","v":0},null,null,null,null,null,null,null,0]
[15,{"$f":"'Student Information'!B17","v":0},null,null,null,null,null,null,null,0]
[16,{"$f":"'Student Information'!B18","v":0},null,null,null,null,null,null,null,0]
[17,{"$f":"'Student Information'!B19","v":0},null,null,null,null,null,null,null,0]
[18,{"$f":"'Student Information'!B20","v":0},null,null,null,null,null,null,null,0]
[19,{"$f":"'Student Information'!B21","v":0},null,null,null,null,null,null,null,0]
[20,{"$f":"'Student Information'!B22","v":0},null,null,null,null,null,null,null,{"$f":"G23-C23","v":0}]
[null,"Average",null,{"$f":"AVERAGE(D4:D22)","v":{"$error":"#DIV/0!"}},{"$f":"AVERAGE(E4:E22)","v":{"$error":"#DIV/0!"}},{"$f":"AVERAGE(F4+F23)","v":0},null,{"$error":"#DIV/0!"},{"$error":"#DIV/0!"}]
[]
[]
[null,"Teacher",{"$f":"'Student Information'!C31:D31","v":0}]
[null,"SCHOOL",{"$f":"'Student Information'!C32:D32","v":0}]
[null,"CLASS PERIOD:",{"$f":"'Student Information'!C33:D33","v":6}]

{"sheet":" Dates of Stages","index":3,"n_rows":29,"n_cols":27,"rows_kept":29,"cut":false,"hidden":false,"merged":[[0,1,0,10],[28,1,31,6]]}
[null,"Word Identification: Dates Stages Were Completed"]
[null,"Student Name","Stage 1: PRETEST & COMMITMENTS","Stage 2: DESCRIBE","Stage 3: MODEL","Stage 4: VERBAL","Stage 5: CONTROLLED PRACTICE","Stage 6: ADVANCED PRACTICE","Stage 7:POST TEST & COMMITMENTS","Stage 8: ORIENTATION","Stage 8: ACTIVATION","Stage 8: ADAPTATION"]
[null,{"$f":"'Student Information'!B2","v":"Jennifer Example"},"2013-03-10","2013-03-15","2013-04-01","2013-04-02","2013-04-10","2013-04-15","2013-04-20","2013-04-21","2013-05-01","2013-05-12"]
[1,{"$f":"'Student Information'!B3","v":0}]
[2,{"$f":"'Student Information'!B4","v":0}]
[3,{"$f":"'Student Information'!B5","v":0}]
[4,{"$f":"'Student Information'!B6","v":0}]
[5,{"$f":"'Student Information'!B7","v":0}]
[6,{"$f":"'Student Information'!B8","v":0}]
[7,{"$f":"'Student Information'!B9","v":0}]
[8,{"$f":"'Student Information'!B10","v":0}]
[9,{"$f":"'Student Information'!B11","v":0}]
[10,{"$f":"'Student Information'!B12","v":0}]
[11,{"$f":"'Student Information'!B13","v":0}]
[12,{"$f":"'Student Information'!B14","v":0}]
[13,{"$f":"'Student Information'!B15","v":0}]
[14,{"$f":"'Student Information'!B16","v":0}]
[15,{"$f":"'Student Information'!B17","v":0}]
[16,{"$f":"'Student Information'!B18","v":0}]
[17,{"$f":"'Student Information'!B19","v":0}]
[18,{"$f":"'Student Information'!B20","v":0}]
[19,{"$f":"'Student Information'!B21","v":0}]
[20,{"$f":"'Student Information'!B22","v":0}]
[]
[null,"Teacher",{"$f":"'Student Information'!C31:D31","v":"00:00:00"},null,null,null,null,null,null,null,null,null,null,null,null,null,null,null,null,null,null,null,null,null,null,null,88]
[null,"SCHOOL",{"$f":"'Student Information'!C32:D32","v":"00:00:00"}]
[null,"CLASS PERIOD:",{"$f":"'Student Information'!C33:D33","v":6}]
[]
[null,"The Word Identification Strategy: Management Chart"]

{"sheet":"CP","index":4,"n_rows":28,"n_cols":37,"rows_kept":28,"cut":false,"hidden":false,"merged":[[0,6,0,17]]}
[null,null,null,null,null,null,"The  Word Identification Strategy Controlled Practice"]
[null,"Student Names","DATE CP 1","DATE FINAL CP","Days to complete","Date  CP 1","Grade Level/Text Type ","Oral Reading  (OR)  1","Comp 1","Date 2","Grade Level/Text Type ","OR 2","Comp 2","Date 3","Grade Level/Text Type ","OR 3","Comp 3","Date 4","Grade Level/Text Type ","OR 4","Comp 4","Date 5","Grade Level/Text Type ","OR 5","Comp 5","Date 6","Grade Level/Text Type ","OR 6","Comp 6","Date 7","Grade Level","OR 7","Comp 7","Date 8","Grade Level","OR 8","Comp 8"]
[null,"Robert","2013-04-01","2013-04-06",{"$f":"D3-C3","v":5},"2013-04-01","5E",62,50,"2013-04-02","5E",99,60,"2013-04-03","6N",73,60,"2013-04-06","6E",99,80,"2013-04-08","7N",99,80]
[1,{"$f":"'Student Information'!B3","v":0},null,null,{"$f":"D4-C4","v":0}]
[2,{"$f":"'Student Information'!B4","v":0},null,null,{"$f":"D5-C5","v":0}]
[3,{"$f":"'Student Information'!B5","v":0},null,null,0]
[4,{"$f":"'Student Information'!B6","v":0},null,null,0]
[5,{"$f":"'Student Information'!B7","v":0},null,null,0]
[6,{"$f":"'Student Information'!B8","v":0},null,null,0]
[7,{"$f":"'Student Information'!B9","v":0},null,null,0]
[8,{"$f":"'Student Information'!B10","v":0},null,null,0]
[9,{"$f":"'Student Information'!B11","v":0},null,null,0]
[10,{"$f":"'Student Information'!B12","v":0},null,null,0]
[11,{"$f":"'Student Information'!B13","v":0},null,null,0]
[12,{"$f":"'Student Information'!B14","v":0},null,null,0]
[13,{"$f":"'Student Information'!B15","v":0},null,null,0]
[14,{"$f":"'Student Information'!B16","v":0},null,null,0]
[15,{"$f":"'Student Information'!B17","v":0},null,null,0]
[16,{"$f":"'Student Information'!B18","v":0},null,null,0]
[17,{"$f":"'Student Information'!B19","v":0},null,null,0]
[18,{"$f":"'Student Information'!B20","v":0},null,null,0]
[19,{"$f":"'Student Information'!B21","v":0},null,null,0]
[20,{"$f":"'Student Information'!B22","v":0},null,null,0]
["Average",null,null,null,{"$f":"AVERAGE(E4:E23)","v":0},null,null,{"$f":"AVERAGE(H4:H23)","v":{"$error":"#DIV/0!"}},{"$f":"AVERAGE(I4:I23)","v":{"$error":"#DIV/0!"}},null,null,{"$f":"AVERAGE(L4:L23)","v":{"$error":"#DIV/0!"}},{"$error":"#DIV/0!"},null,{"$error":"#DIV/0!"},null,{"$error":"#DIV/0!"},null,null,{"$f":"AVERAGE(T4:T23)","v":{"$error":"#DIV/0!"}},{"$f":"AVERAGE(U4:U23)","v":{"$error":"#DIV/0!"}},null,null,{"$f":"AVERAGE(X4:X23)","v":{"$error":"#DIV/0!"}},{"$error":"#DIV/0!"}]
[]
[null,"Teacher",{"$f":"'Student Information'!C31:D31","v":"00:00:00"}]
[null,"School",{"$f":"'Student Information'!C32:D32","v":"00:00:00"}]
[null,"Class Period",{"$f":"'Student Information'!C33:D33","v":6}]

{"sheet":"AP","index":5,"n_rows":28,"n_cols":29,"rows_kept":28,"cut":false,"hidden":false,"merged":[[0,1,0,15]]}
[null," The The Word Identification Strategy: Advanced Practice "]
[null,"Student Names","Date of First AP ","Date of Final AP","Days to complete","Date AP 1","Grade Level/Text Type ","OR 1","Comp 1","Date AP 2","Grade Level/Text Type ","OR 2","Comp 2","Date AP 3","Grade Level/Text Type ","OR 3","Comp 3","Date AP 4","Grade Level/Text Type ","OR 4","Comp 4","Date AP 5","Grade Level/Text Type ","OR 5","Comp 5","Date AP 6","Grade Level/Text Type ","OR 6","Comp 6"]
[null,{"$f":"'Student Information'!B2","v":"Jennifer Example"},"2013-04-11","2013-04-15",{"$f":"D3-C3","v":4},"2013-04-11","8 E",85,70,"2013-04-13","8 N",93,80,"2013-04-15","8E",83,70]
[1,{"$f":"'Student Information'!B3","v":0},null,null,0,{"$f":"C4","v":"00:00:00"}]
[2,{"$f":"'Student Information'!B4","v":0},null,null,0,"00:00:00"]
[3,{"$f":"'Student Information'!B5","v":0},null,null,0,"00:00:00"]
[4,{"$f":"'Student Information'!B6","v":0},null,null,0,"00:00:00"]
[5,{"$f":"'Student Information'!B7","v":0},null,null,0,"00:00:00"]
[6,{"$f":"'Student Information'!B8","v":0},null,null,0,"00:00:00"]
[7,{"$f":"'Student Information'!B9","v":0},null,null,0,"00:00:00"]
[8,{"$f":"'Student Information'!B10","v":0},null,null,0,"00:00:00"]
[9,{"$f":"'Student Information'!B11","v":0},null,null,0,"00:00:00"]
[10,{"$f":"'Student Information'!B12","v":0},null,null,0,"00:00:00"]
[11,{"$f":"'Student Information'!B13","v":0},null,null,0,"00:00:00"]
[12,{"$f":"'Student Information'!B14","v":0},null,null,0,"00:00:00"]
[13,{"$f":"'Student Information'!B15","v":0},null,null,0,"00:00:00"]
[14,{"$f":"'Student Information'!B16","v":0},null,null,0,"00:00:00"]
[15,{"$f":"'Student Information'!B17","v":0},null,null,0,"00:00:00"]
[16,{"$f":"'Student Information'!B18","v":0},null,null,0,"00:00:00"]
[17,{"$f":"'Student Information'!B19","v":0},null,null,0,"00:00:00"]
[18,{"$f":"'Student Information'!B20","v":0},null,null,0,"00:00:00"]
[19,{"$f":"'Student Information'!B21","v":0},null,null,0,"00:00:00"]
[20,{"$f":"'Student Information'!B22","v":0},null,null,0,"00:00:00"]
["Average",null,null,null,{"$f":"AVERAGE(E3:E22)","v":0.2},null,null,{"$f":"AVERAGE(H4:H23)","v":{"$error":"#DIV/0!"}},{"$f":"AVERAGE(I4:I23)","v":{"$error":"#DIV/0!"}},null,null,{"$f":"AVERAGE(L4:L23)","v":{"$error":"#DIV/0!"}},{"$f":"AVERAGE(M4:M23)","v":{"$error":"#DIV/0!"}},null,null,{"$f":"AVERAGE(P4:P23)","v":{"$error":"#DIV/0!"}},{"$f":"AVERAGE(Q4:Q23)","v":{"$error":"#DIV/0!"}},null,null,{"$f":"AVERAGE(T4:T23)","v":{"$error":"#DIV/0!"}},{"$f":"AVERAGE(U4:U23)","v":{"$error":"#DIV/0!"}},null,null,{"$f":"AVERAGE(X4:X23)","v":{"$error":"#DIV/0!"}},{"$error":"#DIV/0!"},null,null,{"$f":"AVERAGE(AB4:AB23)","v":{"$error":"#DIV/0!"}},{"$f":"AVERAGE(AC4:AC23)","v":{"$error":"#DIV/0!"}}]
[]
[null,"Teacher",{"$f":"'Student Information'!C31:D31","v":"00:00:00"}]
[null,"School",{"$f":"'Student Information'!C32:D32","v":"00:00:00"}]
[null,"Class Period",{"$f":"'Student Information'!C33:D33","v":6}]

{"sheet":"MP","index":6,"n_rows":29,"n_cols":21,"rows_kept":29,"cut":false,"hidden":false,"merged":[[0,2,0,4]]}
[null,"The Word Identification Strategy: Maintenance Probe Scores","Word Identification Strategy:  Maintenance Probes"]
[null,"Student Names","Date of First MP ","Date of Final MP","Days to complete","Date Oral Reading (OR) 1","Grade Level/Text Type","OR 1","Date OR 2","Grade Level/Text Type","OR 2","Date OR 3","Grade Level/Text Type","OR 3","Date OR 4 ","Grade Level/Text Type","OR 4","Date OR 5 ","Grade Level/Text Type","OR 5 "]
[null,{"$f":"'Student Information'!B2","v":"Jennifer Example"},"2013-04-18","2013-05-30",{"$f":"D3-C3","v":42},"2013-04-18","8 E",82,"2013-04-30","8N",80,"2013-05-05","8E",90,"2013-05-30","8E",80,"2013-09-15","9E",85]
[1,{"$f":"'Student Information'!B3","v":0},null,null,{"$f":"D4-C4","v":0}]
[2,{"$f":"'Student Information'!B4","v":0},null,null,0]
[3,{"$f":"'Student Information'!B5","v":0},null,null,0]
[4,{"$f":"'Student Information'!B6","v":0},null,null,0]
[5,{"$f":"'Student Information'!B7","v":0},null,null,0]
[6,{"$f":"'Student Information'!B8","v":0},null,null,0]
[7,{"$f":"'Student Information'!B9","v":0},null,null,0]
[8,{"$f":"'Student Information'!B10","v":0},null,null,0]
[9,{"$f":"'Student Information'!B11","v":0},null,null,0]
[10,{"$f":"'Student Information'!B12","v":0},null,null,0,null,null,null,null,null,null,null,null,null,null,null,null,null,null,null,"      "]
[11,{"$f":"'Student Information'!B13","v":0},null,null,0]
[12,{"$f":"'Student Information'!B14","v":0},null,null,0]
[13,{"$f":"'Student Information'!B15","v":0},null,null,0]
[14,{"$f":"'Student Information'!B16","v":0},null,null,0]
[15,{"$f":"'Student Information'!B17","v":0},null,null,0]
[16,{"$f":"'Student Information'!B18","v":0},null,null,0]
[17,{"$f":"'Student Information'!B19","v":0},null,null,0]
[18,{"$f":"'Student Information'!B20","v":0},null,null,0]
[19,{"$f":"'Student Information'!B21","v":0},null,null,0]
[20,{"$f":"'Student Information'!B22","v":0},null,null,0]
[21,"Average",null,null,{"$f":"AVERAGE(E4:E23)","v":0}]
[]
[]
[null,"Teacher"]
[null,"SCHOOL"]
[null,"CLASS PERIOD:",{"$f":"'Student Information'!C33:D33","v":6}]

{"sheet":"Worksheets","index":7,"n_rows":30,"n_cols":26,"rows_kept":30,"cut":false,"hidden":false,"merged":[[0,2,0,6],[1,2,1,9],[1,11,1,18],[1,20,1,25]]}
[null,null,"Word Identification Strategy:  Worksheets"]
[null,null,"PREFIXES",null,null,null,null,null,null,null,null,"SUFFIXES",null,null,null,null,null,null,null,null,"EXAMINE THE STEM"]
[null,"Student Names","Date 1","Score 1","Date 2","Score 2","Date 3","Score 3","Date 4","Score 4",null,"Date 1","Score 1","Dagte 2","Score 2","Date 3","Score 3","Date 4","Score 4",null,"Date 1","Score 1","Date 2","Score 2","Date 3","Score 3"]
[null,{"$f":"'Student Information'!B2","v":"Jennifer Example"},null,null,null,null,null,null,null,null,null,null,"9E"]
[1,{"$f":"'Student Information'!B3","v":0}]
[2,{"$f":"'Student Information'!B4","v":0}]
[3,{"$f":"'Student Information'!B5","v":0}]
[4,{"$f":"'Student Information'!B6","v":0}]
[5,{"$f":"'Student Information'!B7","v":0}]
[6,{"$f":"'Student Information'!B8","v":0}]
[7,{"$f":"'Student Information'!B9","v":0}]
[8,{"$f":"'Student Information'!B10","v":0}]
[9,{"$f":"'Student Information'!B11","v":0}]
[10,{"$f":"'Student Information'!B12","v":0}]
[11,{"$f":"'Student Information'!B13","v":0}]
[12,{"$f":"'Student Information'!B14","v":0}]
[13,{"$f":"'Student Information'!B15","v":0}]
[14,{"$f":"'Student Information'!B16","v":0}]
[15,{"$f":"'Student Information'!B17","v":0}]
[16,{"$f":"'Student Information'!B18","v":0}]
[17,{"$f":"'Student Information'!B19","v":0}]
[18,{"$f":"'Student Information'!B20","v":0}]
[19,{"$f":"'Student Information'!B21","v":0}]
[20,{"$f":"'Student Information'!B22","v":0}]
[null,"Average",null,{"$f":"AVERAGE(D5+D24)","v":0},null,{"$f":"AVERAGE(F5+F24)","v":0},null,{"$f":"AVERAGE(H5+H24)","v":0},null,{"$f":"AVERAGE(J5+J24)","v":0},null,null,{"$f":"AVERAGE(M5+M24)","v":0},null,{"$f":"AVERAGE(O5+O24)","v":0},null,{"$f":"AVERAGE(Q5+Q24)","v":0},null,{"$f":"AVERAGE(S5+S24)","v":0},null,null,{"$f":"AVERAGE(V5+V24)","v":0},null,{"$f":"AVERAGE(X5+X24)","v":0},null,{"$f":"AVERAGE(Z4+Z24)","v":0}]
[]
[]
[null,"Teacher"]
[null,"SCHOOL"]
[null,"CLASS PERIOD:",{"$f":"'Student Information'!C33:D33","v":6}]

{"sheet":"Adaptation","index":8,"n_rows":30,"n_cols":11,"rows_kept":30,"cut":false,"hidden":false,"merged":[[0,2,0,6],[1,11,1,18],[1,1,1,5],[1,7,1,10]]}
[null,null,"Word Identification Strategy:  General Adaptation"]
[null,"Adaptation Assignments",null,null,null,null,null,"Strategy Use"]
[null,"Student Names","Date Adapt 1","Date Adapt 2","Date Adapt 3","Date Adapt 4",null,"Date Use 1","Date Use 2","Date Use 3","Date Use 4"]
[null,{"$f":"'Student Information'!B2","v":"Jennifer Example"}]
[1,{"$f":"'Student Information'!B3","v":0}]
[2,{"$f":"'Student Information'!B4","v":0}]
[3,{"$f":"'Student Information'!B5","v":0}]
[4,{"$f":"'Student Information'!B6","v":0}]
[5,{"$f":"'Student Information'!B7","v":0}]
[6,{"$f":"'Student Information'!B8","v":0}]
[7,{"$f":"'Student Information'!B9","v":0}]
[8,{"$f":"'Student Information'!B10","v":0}]
[9,{"$f":"'Student Information'!B11","v":0}]
[10,{"$f":"'Student Information'!B12","v":0}]
[11,{"$f":"'Student Information'!B13","v":0}]
[12,{"$f":"'Student Information'!B14","v":0}]
[13,{"$f":"'Student Information'!B15","v":0}]
[14,{"$f":"'Student Information'!B16","v":0}]
[15,{"$f":"'Student Information'!B17","v":0}]
[16,{"$f":"'Student Information'!B18","v":0}]
[17,{"$f":"'Student Information'!B19","v":0}]
[18,{"$f":"'Student Information'!B20","v":0}]
[19,{"$f":"'Student Information'!B21","v":0}]
[20,{"$f":"'Student Information'!B22","v":0}]
[21,"Average",null,null,null,null,null,{"$f":"AVERAGE(#REF!)","v":{"$error":"#REF!"}}]
[]
[]
[null,"Teacher"]
[null,"SCHOOL"]
[null,"CLASS PERIOD:",{"$f":"'Student Information'!C33:D33","v":6}]

{"sheet":"Example ","index":9,"n_rows":8,"n_cols":9,"rows_kept":8,"cut":false,"hidden":false,"merged":[[0,4,2,9],[6,2,6,5],[7,2,7,5]]}
[null,null,null,null," The Word Identification Strategy: Student Graphs"]
[]
[]
[]
[null,null,null,null,null,null,null,"TEACHER:",{"$f":"'Student Information'!C31","v":"00:00:00"}]
[null,null,{"$f":"'Student Information'!B2","v":"Jennifer Example"},null,null,null,null,"School:",{"$f":"'Student Information'!C32","v":"00:00:00"}]
[null,null,"Days From Pretest to Post Test:",null,null,null,{"$f":"PrePost!J3","v":42},"CLASS PERIOD:",{"$f":"'Student Information'!C33","v":6}]
[null,null,"Prefix/Suffix Test Score:",null,null,null,{"$f":"PrePost!F3","v":56}]

{"sheet":"Student 1","index":10,"n_rows":8,"n_cols":9,"rows_kept":8,"cut":false,"hidden":false,"merged":[[0,4,2,9],[6,2,6,5],[7,2,7,5]]}
[null,null,null,null," The Word Identification Strategy: Student Graphs"]
[]
[]
[]
[null,null,null,null,null,null,null,"TEACHER:",{"$f":"'Student Information'!C31","v":"00:00:00"}]
[null,null,{"$f":"'Student Information'!B3","v":0},null,null,null,null,"School:",{"$f":"'Student Information'!C32","v":"00:00:00"}]
[null,null,"Days From Pretest to Post Test:",null,null,null,{"$f":"PrePost!J4","v":0},"CLASS PERIOD:",{"$f":"'Student Information'!C33","v":6}]
[null,null,"Prefix/Suffix Test Score:",null,null,null,{"$f":"PrePost!F4","v":0}]

{"sheet":"Student 2","index":11,"n_rows":8,"n_cols":9,"rows_kept":8,"cut":false,"hidden":false,"merged":[[0,4,2,9],[6,2,6,5],[7,2,7,5]]}
[null,null,null,null," The Word Identification Strategy: Student Graphs"]
[]
[]
[]
[null,null,null,null,null,null,null,"TEACHER:",{"$f":"'Student Information'!C31","v":"00:00:00"}]
[null,null,{"$f":"'Student Information'!B4","v":0},null,null,null,null,"School:",{"$f":"'Student Information'!C32","v":"00:00:00"}]
[null,null,"Days From Pretest to Post Test:",null,null,null,{"$f":"PrePost!J5","v":0},"CLASS PERIOD:",{"$f":"'Student Information'!C33","v":6}]
[null,null,"Prefix/Suffix Test Score:",null,null,null,{"$f":"PrePost!F5","v":0}]

{"sheet":"Student 3","index":12,"n_rows":8,"n_cols":9,"rows_kept":8,"cut":false,"hidden":false,"merged":[[0,4,2,9],[6,2,6,5],[7,2,7,5]]}
[null,null,null,null," The Word Identifiction Strategy: Student Graphs"]
[]
[]
[]
[null,null,null,null,null,null,null,"TEACHER:",{"$f":"'Student Information'!C31","v":"00:00:00"}]
[null,null,{"$f":"'Student Information'!B5","v":0},null,null,null,null,"School:",{"$f":"'Student Information'!C32","v":"00:00:00"}]
[null,null,"Days From Pretest to Post Test:",null,null,null,{"$f":"PrePost!J6","v":0},"CLASS PERIOD:",{"$f":"'Student Information'!C33","v":6}]
[null,null,"Prefix/Suffix Test Score:",null,null,null,{"$f":"PrePost!F6","v":0}]

{"sheet":"Student 4","index":13,"n_rows":8,"n_cols":9,"rows_kept":8,"cut":false,"hidden":false,"merged":[[0,4,2,9],[6,2,6,5],[7,2,7,5]]}
[null,null,null,null," The Word Identification Strategy: Student Graphs"]
[]
[]
[]
[null,null,null,null,null,null,null,"TEACHER:",{"$f":"'Student Information'!C31","v":"00:00:00"}]
[null,null,{"$f":"'Student Information'!B6","v":0},null,null,null,null,"School:",{"$f":"'Student Information'!C32","v":"00:00:00"}]
[null,null,"Days From Pretest to Post Test:",null,null,null,{"$f":"PrePost!J7","v":0},"CLASS PERIOD:",{"$f":"'Student Information'!C33","v":6}]
[null,null,"Prefix/Suffix Test Score:",null,null,null,{"$f":"PrePost!F7","v":0}]

{"sheet":"Student 5","index":14,"n_rows":8,"n_cols":9,"rows_kept":8,"cut":false,"hidden":false,"merged":[[0,4,2,9],[6,2,6,5],[7,2,7,5]]}
[null,null,null,null," The Word Identification Strategy: Student Graphs"]
[]
[]
[]
[null,null,null,null,null,null,null,"TEACHER:",{"$f":"'Student Information'!C31","v":"00:00:00"}]
[null,null,{"$f":"'Student Information'!B7","v":0},null,null,null,null,"School:",{"$f":"'Student Information'!C32","v":"00:00:00"}]
[null,null,"Days From Pretest to Post Test:",null,null,null,{"$f":"PrePost!J8","v":0},"CLASS PERIOD:",{"$f":"'Student Information'!C33","v":6}]
[null,null,"Prefix/Suffix Test Score:",null,null,null,{"$f":"PrePost!F8","v":0}]

{"sheet":"Student 6","index":15,"n_rows":8,"n_cols":9,"rows_kept":8,"cut":false,"hidden":false,"merged":[[0,4,2,9],[6,2,6,5],[7,2,7,5]]}
[null,null,null,null," The Word Identification Strategy: Student Graphs"]
[]
[]
[]
[null,null,null,null,null,null,null,"TEACHER:",{"$f":"'Student Information'!C31","v":"00:00:00"}]
[null,null,{"$f":"'Student Information'!B8","v":0},null,null,null,null,"School:",{"$f":"'Student Information'!C32","v":"00:00:00"}]
[null,null,"Days From Pretest to Post Test:",null,null,null,{"$f":"PrePost!J9","v":0},"CLASS PERIOD:",{"$f":"'Student Information'!C33","v":6}]
[null,null,"Prefix/Suffix Test Score:",null,null,null,{"$f":"PrePost!F9","v":0}]

{"sheet":"Student 7","index":16,"n_rows":8,"n_cols":9,"rows_kept":8,"cut":false,"hidden":false,"merged":[[0,4,2,9],[6,2,6,5],[7,2,7,5]]}
[null,null,null,null," The Word Identification Strategy: Student Graphs"]
[]
[]
[]
[null,null,null,null,null,null,null,"TEACHER:",{"$f":"'Student Information'!C31","v":"00:00:00"}]
[null,null,{"$f":"'Student Information'!B9","v":0},null,null,null,null,"School:",{"$f":"'Student Information'!C32","v":"00:00:00"}]
[null,null,"Days From Pretest to Post Test:",null,null,null,{"$f":"PrePost!J10","v":0},"CLASS PERIOD:",{"$f":"'Student Information'!C33","v":6}]
[null,null,"Prefix/Suffix Test Score:",null,null,null,{"$f":"PrePost!F10","v":0}]

{"sheet":"Student 8","index":17,"n_rows":8,"n_cols":9,"rows_kept":8,"cut":false,"hidden":false,"merged":[[0,4,2,9],[6,2,6,5],[7,2,7,5]]}
[null,null,null,null," The Word Identification Strategy: Student Graphs"]
[]
[]
[]
[null,null,null,null,null,null,null,"TEACHER:",{"$f":"'Student Information'!C31","v":"00:00:00"}]
[null,null,{"$f":"'Student Information'!B10","v":0},null,null,null,null,"School:",{"$f":"'Student Information'!C32","v":"00:00:00"}]
[null,null,"Days From Pretest to Post Test:",null,null,null,{"$f":"PrePost!J11","v":0},"CLASS PERIOD:",{"$f":"'Student Information'!C33","v":6}]
[null,null,"Prefix/Suffix Test Score:",null,null,null,{"$f":"PrePost!F11","v":0}]

{"sheet":"Student 9","index":18,"n_rows":63,"n_cols":15,"rows_kept":63,"cut":false,"hidden":false,"merged":[[0,4,2,9],[6,2,6,5],[7,2,7,5]]}
[null,null,null,null," The Word Identification Strategy: Student Graphs"]
[]
[]
[]
[null,null,null,null,null,null,null,"TEACHER:",{"$f":"'Student Information'!C31","v":"00:00:00"}]
[null,null,{"$f":"'Student Information'!B11","v":0},null,null,null,null,"School:",{"$f":"'Student Information'!C32","v":"00:00:00"}]
[null,null,"Days From Pretest to Post Test:",null,null,null,{"$f":"PrePost!J12","v":0},"CLASS PERIOD:",{"$f":"'Student Information'!C33","v":6}]
[null,null,"Prefix/Suffix Test Score:",null,null,null,{"$f":"PrePost!F12","v":0}]
[]
[]
[]
[]
[]
[]
[]
[]
[]
[]
[]
[]
[]
[]
[]
[]
[]
[]
[]
[]
[]
[]
[]
[]
[]
[]
[]
[]
[]
[]
[]
[]
[]
[]
[]
[]
[]
[]
[]
[]
[]
[]
[]
[]
[]
[]
[]
[]
[]
[]
[]
[]
[]
[]
[null,null,null,null,null,null,null,null,null,null,null,null,null,null,"                                                                                                       "]

{"sheet":"Student 10","index":19,"n_rows":63,"n_cols":15,"rows_kept":63,"cut":false,"hidden":false,"merged":[[0,4,2,9],[6,2,6,5],[7,2,7,5]]}
[null,null,null,null," The Word Identificaiton Strategy: Student Graphs"]
[]
[]
[]
[null,null,null,null,null,null,null,"TEACHER:",{"$f":"'Student Information'!C31","v":"00:00:00"}]
[null,null,{"$f":"'Student Information'!B12","v":0},null,null,null,null,"School:",{"$f":"'Student Information'!C32","v":"00:00:00"}]
[null,null,"Days From Pretest to Post Test:",null,null,null,{"$f":"PrePost!J13","v":0},"CLASS PERIOD:",{"$f":"'Student Information'!C33","v":6}]
[null,null,"Prefix/Suffix Test Score:",null,null,null,{"$f":"PrePost!F13","v":0}]
[]
[]
[]
[]
[]
[]
[]
[]
[]
[]
[]
[]
[]
[]
[]
[]
[]
[]
[]
[]
[]
[]
[]
[]
[]
[]
[]
[]
[]
[]
[]
[]
[]
[]
[]
[]
[]
[]
[]
[]
[]
[]
[]
[]
[]
[]
[]
[]
[]
[]
[]
[]
[]
[]
[null,null,null,null,null,null,null,null,null,null,null,null,null,null,"                                                                                                       "]

{"sheet":"Student 11","index":20,"n_rows":63,"n_cols":15,"rows_kept":63,"cut":false,"hidden":false,"merged":[[0,4,2,9],[6,2,6,5],[7,2,7,5]]}
[null,null,null,null," The Word Identification Strategy: Student Graphs"]
[]
[]
[]
[null,null,null,null,null,null,null,"TEACHER:",{"$f":"'Student Information'!C31","v":"00:00:00"}]
[null,null,{"$f":"'Student Information'!B13","v":0},null,null,null,null,"School:",{"$f":"'Student Information'!C32","v":"00:00:00"}]
[null,null,"Days From Pretest to Post Test:",null,null,null,{"$f":"PrePost!J14","v":0},"CLASS PERIOD:",{"$f":"'Student Information'!C33","v":6}]
[null,null,"Prefix/Suffix Test Score:",null,null,null,{"$f":"PrePost!F14","v":0}]
[]
[]
[]
[]
[]
[]
[]
[]
[]
[]
[]
[]
[]
[]
[]
[]
[]
[]
[]
[]
[]
[]
[]
[]
[]
[]
[]
[]
[]
[]
[]
[]
[]
[]
[]
[]
[]
[]
[]
[]
[]
[]
[]
[]
[]
[]
[]
[]
[]
[]
[]
[]
[]
[]
[null,null,null,null,null,null,null,null,null,null,null,null,null,null,"                                                                                                       "]

{"sheet":"Student 12","index":21,"n_rows":63,"n_cols":15,"rows_kept":63,"cut":false,"hidden":false,"merged":[[0,4,2,9],[6,2,6,5],[7,2,7,5]]}
[null,null,null,null," The Word Identificaiton Strategy: Student Graphs"]
[]
[]
[]
[null,null,null,null,null,null,null,"TEACHER:",{"$f":"'Student Information'!C31","v":"00:00:00"}]
[null,null,{"$f":"'Student Information'!B14","v":0},null,null,null,null,"School:",{"$f":"'Student Information'!C32","v":"00:00:00"}]
[null,null,"Days From Pretest to Post Test:",null,null,null,{"$f":"PrePost!J15","v":0},"CLASS PERIOD:",{"$f":"'Student Information'!C33","v":6}]
[null,null,"Prefix/Suffix Test Score:",null,null,null,{"$f":"PrePost!F15","v":0}]
[]
[]
[]
[]
[]
[]
[]
[]
[]
[]
[]
[]
[]
[]
[]
[]
[]
[]
[]
[]
[]
[]
[]
[]
[]
[]
[]
[]
[]
[]
[]
[]
[]
[]
[]
[]
[]
[]
[]
[]
[]
[]
[]
[]
[]
[]
[]
[]
[]
[]
[]
[]
[]
[]
[null,null,null,null,null,null,null,null,null,null,null,null,null,null,"                                                                                                       "]

{"sheet":"Student 13","index":22,"n_rows":63,"n_cols":15,"rows_kept":63,"cut":false,"hidden":false,"merged":[[0,4,2,9],[6,2,6,5],[7,2,7,5]]}
[null,null,null,null," The Word Identification Strategy: Student Graphs"]
[]
[]
[]
[null,null,null,null,null,null,null,"TEACHER:",{"$f":"'Student Information'!C31","v":"00:00:00"}]
[null,null,{"$f":"'Student Information'!B15","v":0},null,null,null,null,"School:",{"$f":"'Student Information'!C32","v":"00:00:00"}]
[null,null,"Days From Pretest to Post Test:",null,null,null,{"$f":"PrePost!J16","v":0},"CLASS PERIOD:",{"$f":"'Student Information'!C33","v":6}]
[null,null,"Prefix/Suffix Test Score:",null,null,null,{"$f":"PrePost!F16","v":0}]
[]
[]
[]
[]
[]
[]
[]
[]
[]
[]
[]
[]
[]
[]
[]
[]
[]
[]
[]
[]
[]
[]
[]
[]
[]
[]
[]
[]
[]
[]
[]
[]
[]
[]
[]
[]
[]
[]
[]
[]
[]
[]
[]
[]
[]
[]
[]
[]
[]
[]
[]
[]
[]
[]
[null,null,null,null,null,null,null,null,null,null,null,null,null,null,"                                                                                                       "]

{"sheet":"Student 14","index":23,"n_rows":63,"n_cols":15,"rows_kept":63,"cut":false,"hidden":false,"merged":[[0,4,2,9],[6,2,6,5],[7,2,7,5]]}
[null,null,null,null," The Word Identification Strategy: Student Graphs"]
[]
[]
[]
[null,null,null,null,null,null,null,"TEACHER:",{"$f":"'Student Information'!C31","v":"00:00:00"}]
[null,null,{"$f":"'Student Information'!B16","v":0},null,null,null,null,"School:",{"$f":"'Student Information'!C32","v":"00:00:00"}]
[null,null,"Days From Pretest to Post Test:",null,null,null,{"$f":"PrePost!J17","v":0},"CLASS PERIOD:",{"$f":"'Student Information'!C33","v":6}]
[null,null,"Prefix/Suffix Test Score:",null,null,null,{"$f":"PrePost!F17","v":0}]
[]
[]
[]
[]
[]
[]
[]
[]
[]
[]
[]
[]
[]
[]
[]
[]
[]
[]
[]
[]
[]
[]
[]
[]
[]
[]
[]
[]
[]
[]
[]
[]
[]
[]
[]
[]
[]
[]
[]
[]
[]
[]
[]
[]
[]
[]
[]
[]
[]
[]
[]
[]
[]
[]
[null,null,null,null,null,null,null,null,null,null,null,null,null,null,"                                                                                                       "]

{"sheet":"Student 15","index":24,"n_rows":63,"n_cols":15,"rows_kept":63,"cut":false,"hidden":false,"merged":[[0,4,2,9],[6,2,6,5],[7,2,7,5]]}
[null,null,null,null," The Word Identification Strategy: Student Graphs"]
[]
[]
[]
[null,null,null,null,null,null,null,"TEACHER:",{"$f":"'Student Information'!C31","v":"00:00:00"}]
[null,null,{"$f":"'Student Information'!B17","v":0},null,null,null,null,"School:",{"$f":"'Student Information'!C32","v":"00:00:00"}]
[null,null,"Days From Pretest to Post Test:",null,null,null,{"$f":"PrePost!J18","v":0},"CLASS PERIOD:",{"$f":"'Student Information'!C33","v":6}]
[null,null,"Prefix/Suffix Test Score:",null,null,null,{"$f":"PrePost!F18","v":0}]
[]
[]
[]
[]
[]
[]
[]
[]
[]
[]
[]
[]
[]
[]
[]
[]
[]
[]
[]
[]
[]
[]
[]
[]
[]
[]
[]
[]
[]
[]
[]
[]
[]
[]
[]
[]
[]
[]
[]
[]
[]
[]
[]
[]
[]
[]
[]
[]
[]
[]
[]
[]
[]
[]
[null,null,null,null,null,null,null,null,null,null,null,null,null,null,"                                                                                                       "]

{"sheet":"Student 16","index":25,"n_rows":63,"n_cols":15,"rows_kept":63,"cut":false,"hidden":false,"merged":[[0,4,2,9],[6,2,6,5],[7,2,7,5]]}
[null,null,null,null," The Word Identification Strategy: Student Graphs"]
[]
[]
[]
[null,null,null,null,null,null,null,"TEACHER:",{"$f":"'Student Information'!C31","v":"00:00:00"}]
[null,null,{"$f":"'Student Information'!B18","v":0},null,null,null,null,"School:",{"$f":"'Student Information'!C32","v":"00:00:00"}]
[null,null,"Days From Pretest to Post Test:",null,null,null,{"$f":"PrePost!J19","v":0},"CLASS PERIOD:",{"$f":"'Student Information'!C33","v":6}]
[null,null,"Prefix/Suffix Test Score:",null,null,null,{"$f":"PrePost!F19","v":0}]
[]
[]
[]
[]
[]
[]
[]
[]
[]
[]
[]
[]
[]
[]
[]
[]
[]
[]
[]
[]
[]
[]
[]
[]
[]
[]
[]
[]
[]
[]
[]
[]
[]
[]
[]
[]
[]
[]
[]
[]
[]
[]
[]
[]
[]
[]
[]
[]
[]
[]
[]
[]
[]
[]
[null,null,null,null,null,null,null,null,null,null,null,null,null,null,"                                                                                                       "]

{"sheet":"Student 17","index":26,"n_rows":63,"n_cols":15,"rows_kept":63,"cut":false,"hidden":false,"merged":[[0,4,2,9],[6,2,6,5],[7,2,7,5]]}
[null,null,null,null," The Word Identification Strategy: Student Graphs"]
[]
[]
[]
[null,null,null,null,null,null,null,"TEACHER:",{"$f":"'Student Information'!C31","v":"00:00:00"}]
[null,null,{"$f":"'Student Information'!B19","v":0},null,null,null,null,"School:",{"$f":"'Student Information'!C32","v":"00:00:00"}]
[null,null,"Days From Pretest to Post Test:",null,null,null,{"$f":"PrePost!J20","v":0},"CLASS PERIOD:",{"$f":"'Student Information'!C33","v":6}]
[null,null,"Prefix/Suffix Test Score:",null,null,null,{"$f":"PrePost!F20","v":0}]
[]
[]
[]
[]
[]
[]
[]
[]
[]
[]
[]
[]
[]
[]
[]
[]
[]
[]
[]
[]
[]
[]
[]
[]
[]
[]
[]
[]
[]
[]
[]
[]
[]
[]
[]
[]
[]
[]
[]
[]
[]
[]
[]
[]
[]
[]
[]
[]
[]
[]
[]
[]
[]
[]
[null,null,null,null,null,null,null,null,null,null,null,null,null,null,"                                                                                                       "]

{"sheet":"Student 18","index":27,"n_rows":63,"n_cols":15,"rows_kept":63,"cut":false,"hidden":false,"merged":[[0,4,2,9],[6,2,6,5],[7,2,7,5]]}
[null,null,null,null," The Word Identification Strategy: Student Graphs"]
[]
[]
[]
[null,null,null,null,null,null,null,"TEACHER:",{"$f":"'Student Information'!C31","v":"00:00:00"}]
[null,null,{"$f":"'Student Information'!B20","v":0},null,null,null,null,"School:",{"$f":"'Student Information'!C32","v":"00:00:00"}]
[null,null,"Days From Pretest to Post Test:",null,null,null,{"$f":"PrePost!J21","v":0},"CLASS PERIOD:",{"$f":"'Student Information'!C33","v":6}]
[null,null,"Prefix/Suffix Test Score:",null,null,null,{"$f":"PrePost!F21","v":0}]
[]
[]
[]
[]
[]
[]
[]
[]
[]
[]
[]
[]
[]
[]
[]
[]
[]
[]
[]
[]
[]
[]
[]
[]
[]
[]
[]
[]
[]
[]
[]
[]
[]
[]
[]
[]
[]
[]
[]
[]
[]
[]
[]
[]
[]
[]
[]
[]
[]
[]
[]
[]
[]
[]
[null,null,null,null,null,null,null,null,null,null,null,null,null,null,"                                                                                                       "]

{"sheet":"Student 19","index":28,"n_rows":63,"n_cols":15,"rows_kept":63,"cut":false,"hidden":false,"merged":[[0,4,2,9],[6,2,6,5],[7,2,7,5]]}
[null,null,null,null," The Word Identification Strategy: Student Graphs"]
[]
[]
[]
[null,null,null,null,null,null,null,"TEACHER:",{"$f":"'Student Information'!C31","v":"00:00:00"}]
[null,null,{"$f":"'Student Information'!B21","v":0},null,null,null,null,"School:",{"$f":"'Student Information'!C32","v":"00:00:00"}]
[null,null,"Days From Pretest to Post Test:",null,null,null,{"$f":"PrePost!J22","v":0},"CLASS PERIOD:",{"$f":"'Student Information'!C33","v":6}]
[null,null,"Prefix/Suffix Test Score:",null,null,null,{"$f":"PrePost!F22","v":0}]
[]
[]
[]
[]
[]
[]
[]
[]
[]
[]
[]
[]
[]
[]
[]
[]
[]
[]
[]
[]
[]
[]
[]
[]
[]
[]
[]
[]
[]
[]
[]
[]
[]
[]
[]
[]
[]
[]
[]
[]
[]
[]
[]
[]
[]
[]
[]
[]
[]
[]
[]
[]
[]
[]
[null,null,null,null,null,null,null,null,null,null,null,null,null,null,"                                                                                                       "]

{"sheet":"Student 20","index":29,"n_rows":63,"n_cols":15,"rows_kept":63,"cut":false,"hidden":false,"merged":[[0,4,2,9],[6,2,6,5],[7,2,7,5]]}
[null,null,null,null," The Word Identification Strategy: Student Graphs"]
[]
[]
[]
[null,null,null,null,null,null,null,"TEACHER:",{"$f":"'Student Information'!C31","v":"00:00:00"}]
[null,null,{"$f":"'Student Information'!B22","v":0},null,null,null,null,"School:",{"$f":"'Student Information'!C32","v":"00:00:00"}]
[null,null,"Days From Pretest to Post Test:",null,null,null,{"$f":"PrePost!J23","v":0},"CLASS PERIOD:",{"$f":"'Student Information'!C33","v":6}]
[null,null,"Prefix/Suffix Test Score:",null,null,null,{"$f":"PrePost!F23","v":0}]
[]
[]
[]
[]
[]
[]
[]
[]
[]
[]
[]
[]
[]
[]
[]
[]
[]
[]
[]
[]
[]
[]
[]
[]
[]
[]
[]
[]
[]
[]
[]
[]
[]
[]
[]
[]
[]
[]
[]
[]
[]
[]
[]
[]
[]
[]
[]
[]
[]
[]
[]
[]
[]
[]
[null,null,null,null,null,null,null,null,null,null,null,null,null,null,"                                                                                                       "]